bitfinex/quotes_BTCUSD_20220307
["timestamp","ask_amount","ask_price","bid_price","bid_amount"]
[1646684410661,0.05,37407.0,37406.0,0.53130211]
[1646684410947,0.05,37407.0,37406.0,0.55807211]
[1646684411151,0.31193214,37420.0,37415.0,0.18841943]
[1646684411152,0.116859,37417.0,37415.0,0.18841943]
[1646684411347,0.116859,37417.0,37408.0,0.07677]
[1646684411549,0.116859,37417.0,37414.0,0.38511519]
[1646684411550,0.05,37417.0,37414.0,0.38511519]
[1646684411754,0.05,37417.0,37415.0,0.264697]
[1646684411953,0.05,37423.0,37415.0,0.314697]
[1646684412153,0.05,37423.0,37415.0,0.341467]
[1646684412349,0.05,37423.0,37419.0,0.264655]
[1646684412553,0.05,37423.0,37421.0,0.02677]
[1646684412753,0.05,37429.0,37422.0,0.4414]
[1646684413008,0.05,37429.0,37423.0,0.02677]
[1646684413199,0.05,37429.0,37425.0,0.17677]
[1646684413400,0.05,37429.0,37427.0,0.02677]
[1646684413601,0.05,37429.0,37428.0,0.264576]
[1646684415405,0.07428623,37437.0,37428.0,0.264576]
[1646684415605,0.07428623,37437.0,37431.0,0.066813]
[1646684415806,0.07428623,37437.0,37432.0,0.60323914]
[1646684416006,0.07428623,37437.0,37433.0,0.33351691]
[1646684416207,0.07428623,37437.0,37434.0,0.26452]
[1646684416870,0.07428623,37437.0,37434.0,0.39813484]
[1646684417070,0.07428623,37437.0,37435.0,0.264512]
[1646684417270,0.409304,37436.0,37434.0,0.18361484]
[1646684417472,0.07428623,37437.0,37431.0,0.00017464]
[1646684417473,0.38698169,37433.0,37431.0,0.00017464]
[1646684417669,0.45381769,37433.0,37431.0,0.00017464]
[1646684418070,0.45381769,37433.0,37432.0,0.00017463]
[1646684418870,0.45381769,37433.0,37431.0,0.0668328]
[1646684421192,0.38698169,37433.0,37431.0,0.0668328]
[1646684421893,0.38698169,37433.0,37431.0,0.0775218]
[1646684422092,0.38698169,37433.0,37431.0,0.0668328]
[1646684422894,0.38698169,37433.0,37432.0,0.57541512]
[1646684423098,0.07428623,37437.0,37433.0,1.67677]
[1646684423099,0.06438623,37437.0,37433.0,1.67677]
[1646684423295,0.02428623,37437.0,37434.0,0.29129]
[1646684423495,0.21351651,37445.0,37436.0,0.17677]
[1646684423697,0.21351651,37445.0,37435.0,1.65]
[1646684423698,0.20031651,37445.0,37444.0,0.264432]
[1646684423900,0.0111,37449.0,37444.0,0.264432]
[1646684423901,0.01,37449.0,37447.0,0.291174]
[1646684424095,0.01,37449.0,37447.0,0.264224]
[1646684424359,0.01,37449.0,37447.0,0.44778942]
[1646684424558,0.01,37449.0,37447.0,0.38100742]
[1646684425453,0.0056,37449.0,37447.0,0.58134558]
[1646684425653,0.0056,37449.0,37448.0,0.314227]
[1646684426553,0.0056,37449.0,37448.0,0.340997]
[1646684426752,0.0056,37449.0,37448.0,0.314227]
[1646684426956,0.00060171,37455.0,37450.0,1.67677]
[1646684427158,0.0011,37461.0,37457.0,0.02677]
[1646684427361,0.192601,37464.0,37459.0,0.02677]
[1646684427555,0.192601,37464.0,37461.0,0.02677]
[1646684427759,0.192601,37464.0,37462.0,0.264102]
[1646684428000,0.41347168,37464.0,37460.0,0.05]
[1646684428199,0.41347168,37464.0,37460.0,0.06675201]
[1646684428697,0.41347168,37464.0,37458.0,0.05]
[1646684428898,0.409224,37463.0,37458.0,0.05]
[1646684429100,0.476002,37463.0,37455.0,0.23482232]
[1646684429299,0.476002,37463.0,37455.0,0.28482232]
[1646684429497,0.409224,37462.0,37455.0,0.28482232]
[1646684429700,0.066778,37463.0,37455.0,0.28482232]
[1646684429896,0.28064964,37457.0,37455.0,0.28482232]
[1646684430102,0.27064964,37457.0,37443.0,0.22713489]
[1646684430305,0.27064964,37457.0,37444.0,0.0493]
[1646684430500,0.27064964,37457.0,37443.0,0.0493]
[1646684430700,0.409224,37456.0,37444.0,0.06680156]
[1646684430902,0.43622012,37457.0,37446.0,0.17371534]
[1646684431099,0.43622012,37457.0,37448.0,0.30327519]
[1646684431302,0.066799,37453.0,37448.0,0.30327519]
[1646684431607,0.27076182,37457.0,37448.0,0.30327519]
[1646684432048,0.409224,37456.0,37448.0,0.48685727]
[1646684432251,0.409224,37455.0,37448.0,0.48685727]
[1646684432448,0.00012263,37457.0,37448.0,0.48685727]
[1646684433049,0.066794,37454.0,37448.0,0.48685727]
[1646684433251,0.35060631,37454.0,37448.0,0.05]
[1646684433450,0.01001702,37453.0,37443.0,0.003]
[1646684433750,2.43721081,37453.0,37445.0,0.00024637]
[1646684434250,0.066804,37450.0,37445.0,0.24964903]
[1646684434648,0.066804,37450.0,37445.0,0.29940266]
[1646684434852,1.226624,37446.0,37445.0,0.00024637]
[1646684435050,0.1607,37446.0,37445.0,0.00024637]
[1646684435250,0.559224,37446.0,37445.0,0.00024637]
[1646684435503,0.05,37446.0,37445.0,0.00024637]
[1646684435701,0.36068986,37446.0,37445.0,0.00024637]
[1646684435903,0.066818,37447.0,37445.0,0.00024637]
[1646684436099,0.066818,37447.0,37440.0,0.001]
[1646684436100,0.05,37448.0,37440.0,0.001]
[1646684436600,0.57143082,37452.0,37442.0,0.06680886]
[1646684436601,0.02965941,37452.0,37442.0,0.06680886]
[1646684436800,0.02965941,37452.0,37444.0,0.23482145]
[1646684437201,0.02965941,37452.0,37444.0,0.28482145]
[1646684437800,0.02965941,37452.0,37445.0,0.13359373]
[1646684438003,0.066791,37455.0,37446.0,0.05]
[1646684438800,0.066791,37455.0,37447.0,0.06679105]
[1646684438999,0.409224,37454.0,37447.0,0.06679105]
[1646684439249,0.476026,37453.0,37448.0,0.19832055]
[1646684439450,0.9667,37461.0,37448.0,0.25639499]
[1646684439651,0.00012227,37457.0,37448.0,0.30639499]
[1646684439851,0.00012227,37457.0,37450.0,0.0667901]
[1646684439852,0.409224,37456.0,37450.0,0.0667901]
[1646684440151,0.409224,37456.0,37448.0,0.30639499]
[1646684440152,0.066795,37455.0,37448.0,0.30639499]
[1646684440557,0.066795,37455.0,37450.0,0.264208]
[1646684440757,0.15,37461.0,37450.0,0.05]
[1646684440758,0.006,37456.0,37450.0,0.05]
[1646684440953,0.006,37456.0,37450.0,0.06678999]
[1646684441151,0.190401,37455.0,37450.0,0.06678999]
[1646684441553,0.257191,37455.0,37448.0,0.1835802]
[1646684441752,0.257191,37455.0,37448.0,0.05]
[1646684442153,0.257191,37455.0,37445.0,0.13359355]
[1646684442154,0.52494877,37454.0,37445.0,0.00026592]
[1646684442353,0.307191,37455.0,37445.0,0.00026592]
[1646684442554,2.40657456,37453.0,37445.0,0.00026592]
[1646684442755,0.200419,37451.0,37445.0,0.00026592]
[1646684443018,0.200419,37451.0,37437.0,0.01335]
[1646684443221,0.133611,37451.0,37435.0,0.01335]
[1646684443417,0.25663432,37447.0,37445.0,0.00026592]
[1646684443717,0.133611,37451.0,37445.0,0.00026592]
[1646684444117,0.066815,37449.0,37442.0,0.31510779]
[1646684444518,0.066815,37449.0,37442.0,0.36537373]
[1646684444720,0.068815,37449.0,37442.0,0.36537373]
[1646684445318,0.068815,37449.0,37442.0,0.36510779]
[1646684445723,0.068815,37449.0,37442.0,0.36537374]
[1646684445921,0.066815,37449.0,37442.0,0.36537374]
[1646684446519,0.066815,37449.0,37442.0,0.43191433]
[1646684446752,0.066815,37449.0,37442.0,0.05026595]
[1646684446953,0.37201974,37449.0,37442.0,0.05026595]
[1646684447154,0.37201974,37449.0,37442.0,0.00026595]
[1646684447155,0.409224,37448.0,37442.0,0.00026595]
[1646684447353,0.21925831,37444.0,37433.0,0.08760732]
[1646684447554,0.06682,37442.0,37434.0,0.264347]
[1646684447754,0.06682,37442.0,37437.0,0.25877438]
[1646684448154,0.06682,37442.0,37441.0,0.00022938]
[1646684448555,0.05,37448.0,37441.0,0.26452538]
[1646684448757,0.587,37453.0,37442.0,0.14751792]
[1646684448956,0.01252004,37454.0,37445.0,0.06679286]
[1646684448957,0.24040115,37451.0,37445.0,0.06679286]
[1646684449154,0.05,37452.0,37445.0,0.06679286]
[1646684449355,0.05,37452.0,37447.0,0.3093474]
[1646684449658,0.133595,37453.0,37447.0,0.3593474]
[1646684450065,0.133595,37453.0,37447.0,0.42614523]
[1646684450600,0.06691488,37451.0,37447.0,0.42614523]
[1646684450799,0.06691488,37451.0,37445.0,0.05]
[1646684451402,0.066795,37451.0,37445.0,0.05]
[1646684451701,0.06691787,37451.0,37445.0,0.05]
[1646684451902,0.06691787,37451.0,37447.0,0.06679663]
[1646684452101,0.06691787,37451.0,37446.0,0.3288006]
[1646684452500,0.066795,37451.0,37445.0,0.05]
[1646684452803,0.22542023,37450.0,37445.0,0.0502493]
[1646684453008,0.35903623,37450.0,37445.0,0.0502493]
[1646684453202,0.35903623,37450.0,37445.0,0.0002493]
[1646684453402,0.03343738,37449.0,37445.0,0.0002493]
[1646684453605,0.409224,37448.0,37445.0,0.0002493]
[1646684453803,2.02016632,37449.0,37442.0,0.19751792]
[1646684454002,2.02016632,37449.0,37444.0,0.00024931]
[1646684454447,0.133636,37447.0,37444.0,0.00024931]
[1646684454851,0.182936,37447.0,37444.0,0.00024931]
[1646684455247,0.182936,37447.0,37442.0,0.19732764]
[1646684455450,0.2154482,37443.0,37442.0,0.14776724]
[1646684455652,0.6584522,37443.0,37442.0,0.14776724]
[1646684456053,0.73767862,37443.0,37442.0,0.14776724]
[1646684456651,0.73767862,37443.0,37442.0,0.14751792]
[1646684456853,0.80450662,37443.0,37442.0,0.14751792]
[1646684457250,0.52223042,37443.0,37442.0,0.14751792]
[1646684457453,0.47223042,37443.0,37442.0,0.14751792]
[1646684457656,0.066827,37445.0,37442.0,0.14751792]
[1646684457860,0.10012225,37451.0,37443.0,0.59651926]
[1646684458103,0.00012225,37451.0,37443.0,0.314272]
[1646684458302,0.00012225,37451.0,37447.0,0.264235]
[1646684458505,0.57690679,37454.0,37446.0,0.17020982]
[1646684458808,0.066791,37453.0,37447.0,0.06679539]
[1646684459002,0.00012227,37451.0,37446.0,0.05]
[1646684459201,0.00012227,37451.0,37443.0,0.00019945]
[1646684459401,0.2715518,37451.0,37443.0,0.00019945]
[1646684459603,0.27144214,37449.0,37443.0,0.00019945]
[1646684459800,0.27144214,37449.0,37442.0,0.26432105]
[1646684459801,0.05,37449.0,37442.0,0.26432105]
[1646684460201,0.05,37449.0,37443.0,0.00022937]
[1646684460602,0.33462279,37449.0,37443.0,0.00022937]
[1646684460801,0.409224,37447.0,37443.0,0.00022937]
[1646684461001,0.05,37447.0,37442.0,0.19751792]
[1646684461204,0.05,37447.0,37442.0,0.14751792]
[1646684461205,0.71470126,37446.0,37442.0,0.14751792]
[1646684461412,0.409224,37445.0,37442.0,0.1285493]
[1646684461605,0.35344518,37444.0,37442.0,0.1285493]
[1646684461857,0.78020418,37443.0,37442.0,0.1285493]
[1646684462055,0.87950418,37443.0,37442.0,0.1285493]
[1646684462254,0.87950418,37443.0,37442.0,0.12831993]
[1646684462656,1.15093371,37443.0,37442.0,0.12831993]
[1646684463054,0.79678853,37443.0,37442.0,0.12831993]
[1646684463256,0.27142953,37443.0,37442.0,0.53755593]
[1646684463459,0.45934901,37447.0,37442.0,0.53755593]
[1646684463460,0.27142953,37444.0,37442.0,0.56432593]
[1646684463658,0.27142953,37451.0,37443.0,0.182172]
[1646684463961,0.00012247,37451.0,37443.0,0.182172]
[1646684464156,0.00012247,37451.0,37445.0,0.409202]
[1646684464357,0.84587478,37455.0,37450.0,0.23671192]
[1646684464557,0.84587478,37455.0,37451.0,0.15536]
[1646684464558,0.27030007,37455.0,37451.0,0.15536]
[1646684464757,0.33709107,37455.0,37451.0,0.05]
[1646684464957,0.33709107,37455.0,37452.0,0.409236]
[1646684464958,0.27030007,37455.0,37452.0,0.409236]
[1646684465256,0.27030007,37455.0,37454.0,0.155227]
[1646684465503,0.27030007,37455.0,37454.0,0.205227]
[1646684465904,0.27030007,37455.0,37454.0,0.27200812]
[1646684466510,0.19850007,37455.0,37454.0,0.27200812]
[1646684466705,0.37968321,37462.0,37454.0,0.27200812]
[1646684466706,0.32389762,37463.0,37457.0,0.02677]
[1646684466904,0.38033372,37466.0,37460.0,0.06675833]
[1646684467107,0.0011,37466.0,37461.0,0.409132]
[1646684467305,0.37923372,37469.0,37461.0,0.485902]
[1646684467510,0.37813372,37471.0,37469.0,0.06888811]
[1646684467712,0.0011,37474.0,37470.0,0.485797]
[1646684467907,0.0011,37476.0,37474.0,0.248623]
[1646684468107,0.0095,37478.0,37474.0,0.248623]
[1646684468306,0.1022,37480.0,37476.0,1.65]
[1646684468510,0.0044,37481.0,37476.0,2.54230194]
[1646684468707,0.0044,37481.0,37480.0,0.05947626]
[1646684468910,0.0044,37481.0,37480.0,0.21456626]
[1646684469110,0.0022,37481.0,37480.0,0.26456626]
[1646684469355,0.0022,37481.0,37480.0,0.20509]
[1646684469955,0.0022,37481.0,37480.0,0.27181399]
[1646684470255,0.0022,37481.0,37480.0,0.05]
[1646684470455,0.0022,37481.0,37480.0,0.459236]
[1646684470857,0.0022,37481.0,37480.0,0.05]
[1646684471058,0.0022,37481.0,37476.0,0.28898641]
[1646684471256,0.0022,37481.0,37476.0,0.05]
[1646684471465,0.0022,37481.0,37468.0,0.13350409]
[1646684471661,0.066757,37477.0,37472.0,0.409236]
[1646684471857,0.0022,37481.0,37472.0,0.409236]
[1646684471858,0.0022,37481.0,37475.0,0.18409981]
[1646684472057,0.0022,37481.0,37476.0,0.154825]
[1646684472259,0.00012265,37480.0,37477.0,0.409236]
[1646684472458,0.0022,37481.0,37479.0,1.65]
[1646684472459,0.00098265,37481.0,37479.0,1.65]
[1646684472659,0.00098265,37481.0,37480.0,0.154785]
[1646684472857,0.00098265,37481.0,37479.0,0.33917534]
[1646684473096,0.00098265,37481.0,37480.0,0.409112]
[1646684474300,0.00098265,37481.0,37479.0,0.33917534]
[1646684474496,0.00098265,37481.0,37479.0,0.05]
[1646684474897,0.00098265,37481.0,37477.0,0.05]
[1646684475098,0.00098265,37481.0,37475.0,0.002]
[1646684475099,0.409112,37480.0,37475.0,0.002]
[1646684475398,0.03265894,37477.0,37475.0,0.002]
[1646684475601,0.08265894,37477.0,37475.0,0.002]
[1646684475799,0.69911473,37476.0,37475.0,0.002]
[1646684476000,0.69911473,37476.0,37467.0,0.13350718]
[1646684476200,0.3037593,37475.0,37467.0,0.13350718]
[1646684476404,0.3705203,37475.0,37467.0,0.13350718]
[1646684476599,0.3705203,37475.0,37468.0,0.05]
[1646684476863,0.4205203,37475.0,37462.0,0.003]
[1646684477060,0.02803059,37473.0,37462.0,0.003]
[1646684477253,0.23478399,37470.0,37462.0,0.003]
[1646684477455,0.066772,37468.0,37462.0,0.003]
[1646684477856,0.33297141,37472.0,37465.0,0.0667575]
[1646684477857,0.3037593,37472.0,37465.0,0.0667575]
[1646684478057,0.05,37472.0,37464.0,0.13351499]
[1646684478254,0.05049322,37479.0,37464.0,0.13351499]
[1646684478456,0.3037593,37478.0,37464.0,0.13351499]
[1646684478654,0.01138823,37477.0,37464.0,0.13351499]
[1646684478854,0.04052558,37473.0,37465.0,0.05]
[1646684479054,0.04052558,37473.0,37467.0,0.06676005]
[1646684479257,0.01036766,37479.0,37468.0,0.54261538]
[1646684479458,0.01036766,37479.0,37468.0,0.13350338]
[1646684479459,0.03360633,37477.0,37468.0,0.13350338]
[1646684479656,0.03360633,37477.0,37469.0,0.05]
[1646684479855,0.10035533,37477.0,37469.0,0.05]
[1646684480256,0.25357156,37474.0,37467.0,0.05]
[1646684480520,0.409112,37473.0,37463.0,0.18352035]
[1646684480706,0.3542393,37472.0,37463.0,0.18352035]
[1646684481003,0.3542393,37472.0,37464.0,0.031]
[1646684481203,0.4210133,37472.0,37464.0,0.031]
[1646684481404,0.09913033,37471.0,37464.0,0.09776519]
[1646684481805,0.066769,37471.0,37464.0,0.031]
[1646684482207,0.74381662,37470.0,37464.0,0.031]
[1646684482406,0.133557,37468.0,37464.0,0.031]
[1646684483004,0.36159765,37468.0,37464.0,0.031]
[1646684483406,0.409112,37467.0,37464.0,0.031]
[1646684483605,0.36159765,37468.0,37464.0,0.031]
[1646684483907,0.409112,37466.0,37464.0,0.031]
[1646684484107,0.409112,37467.0,37466.0,0.58030003]
[1646684484553,0.409112,37467.0,37466.0,0.63030003]
[1646684485451,0.05,37468.0,37466.0,0.63030003]
[1646684485652,0.10740302,37474.0,37466.0,0.63030003]
[1646684485852,0.08005657,37474.0,37467.0,0.16867241]
[1646684486051,0.066754,37475.0,37467.0,0.30218007]
[1646684486249,0.066754,37475.0,37467.0,0.18350766]
[1646684486651,0.409112,37474.0,37467.0,0.18350766]
[1646684486851,0.133527,37474.0,37467.0,0.18350766]
[1646684487252,0.0287286,37476.0,37470.0,0.19574243]
[1646684487452,0.05,37473.0,37467.0,0.18350766]
[1646684487650,0.0287286,37476.0,37467.0,0.18350766]
[1646684488103,0.133526,37474.0,37467.0,0.18350766]
[1646684488301,0.066763,37472.0,37467.0,0.18350766]
[1646684488703,0.409112,37471.0,37466.0,0.63030003]
[1646684488902,0.066763,37472.0,37466.0,0.63030003]
[1646684489105,0.18223003,37486.0,37471.0,0.150103]
[1646684489305,0.18223003,37486.0,37475.0,0.40901]
[1646684489306,0.15963003,37486.0,37475.0,0.40901]
[1646684489505,0.04093003,37486.0,37477.0,0.176843]
[1646684489709,0.04093003,37486.0,37476.0,0.5035393]
[1646684489710,0.0022,37488.0,37481.0,0.02677]
[1646684490005,0.0022,37488.0,37485.0,0.97441745]
[1646684490207,0.0022,37488.0,37485.0,1.02441745]
[1646684490404,0.0011,37488.0,37485.0,1.02441745]
[1646684490604,0.0033,37489.0,37486.0,1.6]
[1646684490805,0.0011,37493.0,37489.0,1.4667114]
[1646684491005,0.0038,37495.0,37491.0,0.75]
[1646684491206,0.0022,37495.0,37493.0,0.25544664]
[1646684491409,0.0044,37502.0,37497.0,0.149976]
[1646684491607,0.0044,37502.0,37498.0,0.408742]
[1646684492053,6.9978,37500.0,37499.0,0.149966]
[1646684492358,6.9928,37500.0,37499.0,0.45212023]
[1646684492552,6.9928,37500.0,37499.0,0.266658]
[1646684492854,6.9928,37500.0,37499.0,0.05]
[1646684493152,6.9928,37500.0,37497.0,0.1166914]
[1646684493352,6.9928,37500.0,37498.0,0.409112]
[1646684494355,6.9906,37500.0,37498.0,0.47581]
[1646684495356,6.9906,37500.0,37499.0,0.149595]
[1646684495599,6.9906,37500.0,37499.0,0.199595]
[1646684496404,6.9906,37500.0,37499.0,0.05]
[1646684496601,6.9906,37500.0,37499.0,0.409112]
[1646684496806,6.9906,37500.0,37497.0,0.0666914]
[1646684497002,6.9906,37500.0,37494.0,0.004]
[1646684497003,0.24255977,37498.0,37494.0,0.004]
[1646684497203,0.29255977,37498.0,37494.0,0.004]
[1646684497402,0.30034084,37497.0,37494.0,0.004]
[1646684497606,0.35927677,37498.0,37494.0,0.004]
[1646684497801,0.29255977,37498.0,37494.0,0.004]
[1646684498002,0.29255977,37498.0,37494.0,0.13343139]
[1646684498702,0.35939125,37498.0,37494.0,0.13343139]
[1646684499002,0.36139125,37498.0,37494.0,0.13343139]
[1646684499243,0.29467525,37498.0,37494.0,0.13343139]
[1646684499443,0.24455977,37498.0,37495.0,0.11671484]
[1646684499645,0.002,37498.0,37495.0,0.11671484]
[1646684499847,0.00211548,37498.0,37495.0,0.11671484]
[1646684500045,6.98771548,37500.0,37496.0,0.409112]
[1646684500355,6.96881548,37500.0,37498.0,0.24610044]
[1646684500548,6.95781548,37500.0,37499.0,0.51664263]
[1646684500749,6.95781548,37500.0,37499.0,0.26630179]
[1646684502146,6.95781548,37500.0,37499.0,0.06668079]
[1646684502347,7.02924095,37500.0,37495.0,0.71738684]
[1646684502545,0.30034084,37499.0,37495.0,0.71738684]
[1646684502748,0.30034084,37499.0,37495.0,0.78409978]
[1646684503201,0.23045329,37497.0,37495.0,0.78409978]
[1646684503402,6.95792744,37500.0,37495.0,0.83409978]
[1646684503601,6.95792744,37500.0,37496.0,0.04163639]
[1646684503801,6.95572744,37500.0,37497.0,0.62588554]
[1646684504006,6.95572744,37500.0,37497.0,0.85967496]
[1646684504202,6.95572744,37500.0,37499.0,0.149607]
[1646684504402,6.95561548,37500.0,37499.0,0.149607]
[1646684504603,6.95572745,37500.0,37499.0,0.149607]
[1646684505204,6.94104845,37500.0,37499.0,0.149607]
[1646684505405,6.94104845,37500.0,37499.0,0.21630037]
[1646684505607,6.94104845,37500.0,37499.0,0.06669337]
[1646684505608,6.94093648,37500.0,37499.0,0.06669337]
[1646684507149,6.94093648,37500.0,37498.0,0.060671]
[1646684507752,0.30034084,37499.0,37498.0,0.060671]
[1646684507957,0.03063351,37498.0,37496.0,0.04163639]
[1646684508158,0.3327985,37497.0,37496.0,0.04163639]
[1646684508356,0.85945284,37497.0,37496.0,0.04163639]
[1646684508553,1.00945284,37497.0,37496.0,0.04163639]
[1646684508753,1.10945284,37497.0,37496.0,0.04163639]
[1646684508956,0.15,37497.0,37496.0,0.04163639]
[1646684509154,0.05,37497.0,37495.0,0.71738684]
[1646684509354,0.35034084,37497.0,37495.0,0.71738684]
[1646684509555,0.409112,37496.0,37495.0,0.71738684]
[1646684509755,0.95945284,37496.0,37495.0,0.71738684]
[1646684509955,0.80945284,37496.0,37495.0,0.71738684]
[1646684510153,0.90945284,37496.0,37495.0,0.71738684]
[1646684510354,1.36684567,37496.0,37495.0,0.71738684]
[1646684510598,1.30613504,37496.0,37495.0,0.71738684]
[1646684510806,0.99874221,37496.0,37495.0,0.71738684]
[1646684511000,0.93201121,37496.0,37495.0,0.71738684]
[1646684511402,1.08201121,37496.0,37495.0,0.71738684]
[1646684511801,1.9896834,37496.0,37495.0,0.71738684]
[1646684512002,1.2390104,37496.0,37495.0,0.71738684]
[1646684512200,1.3890104,37496.0,37495.0,0.76738684]
[1646684512609,1.3890104,37496.0,37495.0,0.36699684]
[1646684512610,2.2064104,37496.0,37495.0,0.36699684]
[1646684512806,0.18928537,37496.0,37495.0,0.36699684]
[1646684513106,0.08928537,37496.0,37495.0,0.36699684]
[1646684514105,0.08928537,37496.0,37495.0,0.41699684]
[1646684514349,0.066727,37496.0,37495.0,0.41699684]
[1646684514553,0.166723,37498.0,37495.0,0.41699684]
[1646684515149,0.984123,37498.0,37495.0,0.41699684]
[1646684515350,0.42335778,37497.0,37495.0,0.41699684]
[1646684515852,0.17683544,37498.0,37495.0,0.41699684]
[1646684516049,0.509112,37496.0,37495.0,0.41699684]
[1646684516249,0.509112,37496.0,37495.0,0.36699684]
[1646684516450,0.509112,37496.0,37495.0,0.41699684]
[1646684516648,1.326512,37496.0,37495.0,0.41699684]
[1646684516847,0.509112,37496.0,37495.0,0.41699684]
[1646684517249,1.326512,37496.0,37495.0,0.41699684]
[1646684517451,0.509112,37496.0,37495.0,0.41699684]
[1646684518503,0.499112,37496.0,37495.0,0.41699684]
[1646684518900,0.409112,37496.0,37495.0,0.41699684]
[1646684519101,0.509112,37496.0,37495.0,0.41699684]
[1646684520301,0.609112,37496.0,37495.0,0.41699684]
[1646684520905,0.658412,37496.0,37495.0,0.04407079]
[1646684521110,0.658412,37496.0,37477.0,0.01332]
[1646684521111,0.066743,37492.0,37477.0,0.01332]
[1646684521307,0.25562142,37482.0,37470.0,0.31332]
[1646684521503,0.950895,37489.0,37483.0,0.58001724]
[1646684521504,0.0493,37486.0,37483.0,0.58001724]
[1646684521749,0.409112,37485.0,37483.0,0.58001724]
[1646684521955,0.475854,37485.0,37483.0,0.58001724]
[1646684522149,0.0493,37486.0,37483.0,0.58001724]
[1646684522351,0.409112,37485.0,37483.0,0.58001724]
[1646684522553,0.24894959,37484.0,37483.0,0.58001724]
[1646684522757,0.65806159,37484.0,37483.0,0.58001724]
[1646684523149,0.475856,37484.0,37483.0,0.58001724]
[1646684524150,0.475856,37484.0,37483.0,0.63001724]
[1646684524351,0.575756,37484.0,37483.0,0.63001724]
[1646684524958,0.15768083,37485.0,37483.0,0.63001724]
[1646684526199,0.15768083,37485.0,37483.0,0.64069324]
[1646684527506,0.409112,37484.0,37483.0,0.58001724]
[1646684527901,0.558412,37484.0,37483.0,0.58001724]
[1646684528100,0.803412,37484.0,37483.0,0.58001724]
[1646684528300,1.10974997,37484.0,37483.0,0.17943224]
[1646684528500,1.95633263,37484.0,37483.0,0.17943224]
[1646684528698,1.48565643,37484.0,37483.0,0.17943224]
[1646684528900,0.066763,37475.0,37467.0,0.46926787]
[1646684529104,0.066763,37473.0,37467.0,0.16926787]
[1646684529350,0.066763,37473.0,37466.0,0.58030003]
[1646684529951,0.475865,37473.0,37466.0,0.63030003]
[1646684530150,0.066763,37473.0,37468.0,0.21423766]
[1646684530351,0.0999,37476.0,37469.0,0.409102]
[1646684530552,0.09995443,37478.0,37474.0,0.18933139]
[1646684530759,0.09995443,37479.0,37475.0,0.409102]
[1646684530953,0.09995443,37479.0,37475.0,0.459102]
[1646684531154,0.09094483,37485.0,37475.0,0.459102]
[1646684531553,0.09094483,37485.0,37475.0,0.52583088]
[1646684531755,0.19084483,37485.0,37475.0,0.52583088]
[1646684531952,0.19084483,37485.0,37480.0,0.19590868]
[1646684532154,0.09094483,37485.0,37480.0,0.19590868]
[1646684532354,0.09094483,37485.0,37480.0,0.24590868]
[1646684532552,0.11037325,37492.0,37481.0,0.409102]
[1646684532754,0.133471,37488.0,37480.0,0.24590868]
[1646684533015,0.066734,37489.0,37481.0,0.409102]
[1646684533215,0.066734,37489.0,37483.0,0.29192328]
[1646684533414,0.23810517,37491.0,37483.0,0.29192328]
[1646684533615,0.1499,37490.0,37483.0,0.29192328]
[1646684534016,0.1499,37490.0,37485.0,0.06672035]
[1646684534421,0.1499,37490.0,37483.0,0.29192328]
[1646684535016,0.1499,37490.0,37483.0,0.35864658]
[1646684535216,0.066726,37489.0,37483.0,0.35864658]
[1646684535417,0.066726,37489.0,37483.0,0.29192328]
[1646684535619,0.0999,37488.0,37483.0,0.29192328]
[1646684536620,0.1499,37488.0,37483.0,0.29192328]
[1646684536854,0.0999,37488.0,37483.0,0.29192328]
[1646684537060,0.0999,37488.0,37481.0,0.24273581]
[1646684537354,0.0999,37488.0,37483.0,0.409102]
[1646684537552,0.0999,37488.0,37481.0,0.24273581]
[1646684537752,0.0999,37488.0,37481.0,0.25341081]
[1646684537955,0.066726,37489.0,37481.0,0.25341081]
[1646684538153,0.0999,37487.0,37481.0,0.24273581]
[1646684538354,0.166636,37487.0,37481.0,0.24273581]
[1646684538554,0.166636,37487.0,37481.0,0.05]
[1646684538754,0.166636,37487.0,37481.0,0.409102]
[1646684538958,0.166636,37487.0,37480.0,0.34668372]
[1646684539355,0.166636,37487.0,37481.0,0.409102]
[1646684539559,0.166636,37487.0,37480.0,0.34668372]
[1646684539757,0.166636,37487.0,37481.0,0.05]
[1646684540155,0.216636,37487.0,37480.0,0.34668372]
[1646684541398,0.06674,37486.0,37480.0,0.34668372]
[1646684541600,0.06674,37486.0,37481.0,0.409102]
[1646684541801,0.03456565,37486.0,37481.0,0.05]
[1646684542000,0.03456565,37486.0,37480.0,0.34668372]
[1646684542205,0.216636,37487.0,37480.0,0.34668372]
[1646684542501,0.25078043,37487.0,37480.0,0.34668372]
[1646684542701,0.25078043,37487.0,37480.0,0.05]
[1646684542902,0.25078043,37487.0,37478.0,0.05]
[1646684543304,0.25078043,37487.0,37476.0,0.01332]
[1646684543305,0.409102,37486.0,37476.0,0.01332]
[1646684543503,0.066751,37481.0,37476.0,0.01332]
[1646684544550,0.133502,37481.0,37476.0,0.01332]
[1646684544754,0.133502,37481.0,37474.0,0.05]
[1646684545151,0.097051,37481.0,37471.0,0.32124603]
[1646684545351,0.066747,37479.0,37472.0,0.47584696]
[1646684545552,0.43430249,37483.0,37472.0,0.409102]
[1646684545751,0.43430249,37483.0,37473.0,0.30149324]
[1646684545752,0.0534,37483.0,37473.0,0.30149324]
[1646684545952,0.08004386,37480.0,37479.0,0.30155147]
[1646684546153,0.08004386,37480.0,37479.0,0.71065347]
[1646684546350,0.08004386,37480.0,37479.0,0.459102]
[1646684547154,0.07785386,37480.0,37479.0,0.76059524]
[1646684547357,0.07785386,37480.0,37479.0,0.88736524]
[1646684547655,0.0999,37487.0,37481.0,0.409102]
[1646684547852,0.0999,37487.0,37483.0,0.20072389]
[1646684548109,0.0999,37487.0,37484.0,0.406002]
[1646684549309,0.08002524,37489.0,37484.0,0.406002]
[1646684551614,0.066718,37495.0,37489.0,0.16005047]
[1646684551863,0.066718,37495.0,37489.0,0.21005047]
[1646684552463,0.23589764,37493.0,37489.0,0.21005047]
[1646684552669,0.53087054,37493.0,37489.0,0.21005047]
[1646684552864,0.066723,37492.0,37489.0,0.21005047]
[1646684553264,0.08001994,37491.0,37489.0,0.21005047]
[1646684553464,0.08001994,37491.0,37490.0,0.409059]